bitfinex-derivatives/quotes_ETHF0:USTF0_20240904
["timestamp","ask_amount","ask_price","bid_price","bid_amount"]
[1725464386448,0.41126,2431.4,2431.3,0.00616345]
[1725464386647,0.00616345,2431.7,2431.3,0.00616345]
[1725464386849,1.03421345,2431.7,2431.3,0.00616345]
[1725464387156,0.41126,2431.4,2431.3,0.00616345]
[1725464387454,1.43942,2431.4,2431.3,0.00616345]
[1725464387757,5.55222,2431.4,2431.3,0.00616345]
[1725464387960,6.58038,2431.4,2431.3,0.00616345]
[1725464389650,4.52406,2431.4,2431.3,0.00616345]
[1725464389855,5.55222,2431.4,2431.3,0.00616345]
[1725464390251,1.43942,2431.4,2431.3,0.00616345]
[1725464390454,0.41126,2431.4,2431.3,0.00616345]
[1725464390653,1.02808,2431.6,2431.3,0.00616345]
[1725464390855,0.41126,2431.4,2431.3,0.00616345]
[1725464391060,0.41125,2431.5,2431.3,3.62522345]
[1725464391356,0.00616345,2431.7,2431.3,3.62522345]
[1725464391556,0.00616345,2431.7,2431.3,3.62523345]
[1725464391950,0.41124,2431.5,2431.3,3.62523345]
[1725464392150,0.41126,2431.4,2431.3,3.21396345]
[1725464392651,1.43942,2431.4,2431.3,3.21396345]
[1725464392852,1.43942,2431.4,2431.3,0.00616345]
[1725464393755,1.43942,2431.4,2431.3,3.21396345]
[1725464394454,5.55222,2431.4,2431.3,3.21396345]
[1725464394654,6.58038,2431.4,2431.3,0.00616345]
[1725464395057,2.46758,2431.4,2431.3,0.00616345]
[1725464395253,6.58038,2431.4,2431.3,0.00616345]
[1725464395762,15.78818,2431.4,2431.3,3.45e-06]
[1725464396255,12.58038,2431.4,2431.3,3.45e-06]
[1725464396458,5.55222,2431.4,2431.3,3.45e-06]
[1725464396656,0.41126,2431.4,2431.3,3.45e-06]
[1725464398964,0.41126,2431.4,2431.3,3.20780345]
[1725464399153,1.43942,2431.4,2431.3,3.20780345]
[1725464399458,0.41126,2431.4,2431.3,3.20780345]
[1725464400466,0.41126,2431.4,2431.3,7.32060345]
[1725464400661,1.43942,2431.4,2431.3,3.20780345]
[1725464401358,12.58038,2431.4,2431.3,3.45e-06]
[1725464401967,13.99488,2431.4,2431.3,3.45e-06]
[1725464402267,7.99488,2431.4,2431.3,3.45e-06]
[1725464402769,13.99488,2431.4,2431.3,3.45e-06]
[1725464403563,7.99488,2431.4,2431.3,3.45e-06]
[1725464404375,13.99488,2431.4,2431.3,3.45e-06]
[1725464405461,16.0512,2431.4,2431.3,3.45e-06]
[1725464405668,13.99488,2431.4,2431.3,3.45e-06]
[1725464405857,16.0512,2431.4,2431.3,3.45e-06]
[1725464406567,1.4399,2430.6,2430.5,1.4072]
[1725464407363,0.41145,2430.3,2430.2,1.4739]
[1725464407568,1.02848,2430.7,2430.2,2.8557]
[1725464407876,0.41142,2430.5,2430.3,3.61924]
[1725464408169,1.44019,2430.1,2430.0,0.004109]
[1725464408564,6.5841,2430.1,2430.0,0.004109]
[1725464409260,15.7919,2430.1,2430.0,9e-06]
[1725464409664,15.7919,2430.1,2429.2,1.3773]
[1725464409665,0.41162,2429.3,2429.2,1.3773]
[1725464410068,1.44067,2429.3,2429.2,1.3773]
[1725464410661,0.41162,2429.3,2429.2,1.3773]
[1725464411464,0.41173,2428.6,2428.1,3.4148]
[1725464411668,0.41790703,2428.6,2428.2,4.2048]
[1725464411972,0.41791703,2428.6,2428.2,7.4126]
[1725464412165,0.00617703,2428.6,2428.5,3.61955]
[1725464412361,0.20642673,2429.4,2428.5,3.61955]
[1725464412362,0.41169,2428.9,2428.5,13.3254]
[1725464412567,0.41169,2428.9,2428.5,3.2078]
[1725464412761,1.02898,2429.5,2428.8,3.2078]
[1725464412762,0.41166,2429.1,2428.8,3.2078]
[1725464412968,1.029,2429.4,2428.9,1.4739]
[1725464413166,0.41165,2429.2,2428.9,1.4739]
[1725464413574,0.00617703,2429.3,2429.1,3.2078]
[1725464413768,0.00617703,2429.3,2428.9,3.44297]
[1725464414069,0.00617703,2429.3,2429.1,3.2078]
[1725464414278,0.00617703,2429.3,2428.9,3.0313]
[1725464414471,0.00617703,2429.3,2428.9,1.4739]
[1725464414472,0.41167,2429.0,2428.9,1.4739]
[1725464414664,0.00617703,2429.3,2428.9,4.6817]
[1725464414871,0.00617703,2429.3,2429.0,1.5574]
[1725464415072,0.00617703,2429.3,2429.0,1.96906]
[1725464415269,0.00617703,2429.3,2429.0,1.5574]
[1725464415571,0.00617703,2429.3,2429.0,1.96906]
[1725464415975,0.00617703,2429.3,2429.1,0.41165]
[1725464416164,0.00617703,2429.3,2429.2,3.61943]
[1725464416368,1.0287,2430.2,2429.2,13.3246]
[1725464416569,0.41149,2430.1,2429.7,0.41154]
[1725464416765,3.2078,2430.7,2429.7,0.41154]
[1725464416766,2.84,2431.2,2430.3,0.41144]
[1725464416971,1.02833,2431.0,2430.6,3.2078]
[1725464417179,1.02833,2431.0,2430.2,3.2078]
[1725464417180,0.20601317,2430.9,2430.2,3.2078]
[1725464417375,0.41142,2430.5,2430.2,3.21397703]
[1725464417578,0.41142,2430.5,2430.2,3.62543703]
[1725464417781,0.00617703,2430.6,2430.2,3.21397703]
[1725464418074,0.00617703,2430.6,2430.2,3.62543703]
[1725464418075,0.41142,2430.5,2430.2,3.62543703]
[1725464418676,0.41143,2430.4,2430.2,3.21397703]
[1725464419282,0.41142,2430.5,2430.2,7.73983703]
[1725464419475,0.41758703,2430.6,2430.2,3.21397703]
[1725464419774,1.02819,2431.4,2430.5,3.2078]
[1725464419974,1.02819,2431.4,2430.3,4.1144]
[1725464419975,0.41134,2430.9,2430.8,3.2078]
[1725464420181,1.43971,2430.9,2430.8,3.2078]
[1725464420375,0.41138,2430.7,2430.6,1.466]
[1725464420875,1.22902593,2431.0,2430.4,3.2078]
[1725464420876,0.41141,2430.5,2430.4,3.2078]
[1725464421181,1.03455703,2430.9,2430.4,3.2078]
[1725464421374,0.41141,2430.5,2430.4,3.2078]
[1725464422070,1.02841,2430.8,2430.2,0.00617703]
[1725464422071,0.41145,2430.4,2430.2,0.00617703]
[1725464422384,1.02845,2430.7,2430.2,0.00617703]
[1725464422682,0.41142,2430.5,2430.2,0.00617703]
[1725464423183,0.41143,2430.4,2430.2,0.00617703]
[1725464423382,1.02841,2430.8,2430.2,0.00617703]
[1725464423678,0.41143,2430.4,2430.2,0.00617703]
[1725464423982,0.41145,2430.3,2430.2,0.00617703]
[1725464424486,0.41145,2430.3,2430.2,4.12137703]
[1725464424869,0.41145,2430.3,2430.2,0.00617703]
[1725464426190,1.44007,2430.3,2430.2,0.00617703]
[1725464426368,0.41145,2430.3,2430.2,0.00617703]
[1725464426774,1.44007,2430.3,2430.2,0.00617703]
[1725464427168,1.44007,2430.3,2429.8,3.2078]
[1725464427169,0.41151,2429.9,2429.8,3.2078]
[1725464428777,3.2078,2430.7,2429.8,13.323]
[1725464428975,0.41147,2430.2,2429.9,3.26151]
[1725464429379,0.41148,2430.1,2429.9,2.85]
[1725464429779,0.4115,2430.0,2429.9,2.85]
[1725464429984,0.41149,2430.1,2429.9,2.85]
[1725464430389,0.4115,2430.0,2429.9,1.4422]
[1725464430778,1.44025,2430.0,2429.9,1.4422]
[1725464431085,0.4115,2430.0,2429.9,1.4422]
[1725464432183,0.41147,2430.2,2429.9,1.8537]
[1725464432375,0.41148,2430.2,2429.9,3.2777]
[1725464432576,1.02859,2430.4,2429.9,2.8662]
[1725464432781,0.41145,2430.3,2430.1,0.41147]
[1725464433077,1.02856,2430.5,2429.9,2.8662]
[1725464433279,0.41148,2430.1,2430.0,0.41149]
[1725464433482,0.41148,2430.1,2429.9,2.8662]
[1725464433483,0.4115,2430.0,2429.9,2.8662]
[1725464433683,1.02858,2430.4,2430.0,0.41149]
[1725464433881,0.41148,2430.1,2430.0,0.41149]
[1725464434081,1.02858,2430.4,2430.2,0.41145]
[1725464434082,0.41144,2430.4,2430.2,0.41145]
[1725464434389,0.41146,2430.3,2430.2,0.41146]
[1725464434780,0.41146,2430.3,2430.2,4.1152]
[1725464434981,0.41145,2430.3,2430.2,4.1152]
[1725464435175,0.41145,2430.3,2430.2,5.5792]
[1725464435384,0.41146,2430.2,2430.1,3.2078]
[1725464435778,0.41146,2430.2,2430.1,7.323]
[1725464435779,1.44013,2430.2,2430.1,7.323]
[1725464435984,0.41146,2430.2,2430.1,7.323]
[1725464436191,0.41146,2430.2,2430.1,3.2078]
[1725464436387,0.41146,2430.2,2430.1,7.323]
[1725464436682,1.44013,2430.2,2430.1,3.2078]
[1725464436888,1.44013,2430.2,2430.1,7.323]
[1725464437088,1.44013,2430.2,2430.1,3.2078]
[1725464437590,0.4115,2430.0,2429.9,2.8662]
[1725464438090,0.4115,2430.0,2429.9,6.9814]
[1725464438796,0.4115,2430.0,2429.9,7.39291]
[1725464439298,1.02868,2430.2,2430.1,0.41147]
[1725464439299,0.41148,2430.2,2430.1,0.41147]
[1725464439485,0.41148,2430.2,2430.1,3.61927]
[1725464439687,4.7127,2431.1,2430.1,3.61927]
[1725464439688,4.117,2431.3,2430.1,13.323]
[1725464439883,9.99896233,2431.6,2430.8,3.2078]
[1725464439884,1.5016,2431.5,2430.8,3.2078]
[1725464440099,1.5016,2431.5,2431.1,3.2078]
[1725464440100,2.52972,2431.5,2431.1,3.2078]
[1725464440398,0.41129,2431.2,2431.1,3.2078]
[1725464442889,0.41128,2431.3,2431.1,3.2078]
[1725464443293,0.00617703,2431.4,2431.1,3.2078]
[1725464443986,0.00617703,2431.4,2431.3,0.41128]
[1725464444301,0.00617703,2431.4,2431.3,4.52408]
[1725464444991,4.117,2432.5,2431.3,10.1128]
[1725464445200,0.41111,2432.3,2432.1,3.2078]
[1725464445491,0.41112,2432.3,2432.1,3.2078]
[1725464445898,4.117,2432.5,2432.1,3.2078]
[1725464445899,0.4111,2432.4,2432.1,3.2078]
[1725464446194,0.41112,2432.2,2431.8,3.2078]
[1725464446397,0.41116,2432.1,2431.5,3.2078]
[1725464446697,0.41116,2432.1,2431.6,0.41122]
[1725464447091,1.5554,2432.2,2431.5,3.61903]
[1725464447394,0.41123,2431.6,2431.5,3.2078]
[1725464448285,1.96662,2431.7,2431.5,3.2078]
[1725464448489,0.41123,2431.6,2431.5,3.2078]
[1725464448687,2.71410434,2432.1,2431.2,3.2078]
[1725464449001,1.02806,2431.7,2431.2,3.2078]
[1725464449204,0.41124,2431.6,2431.2,3.61909]
[1725464449492,0.41119,2431.8,2431.5,3.2078]
[1725464449686,0.41123,2431.6,2431.5,3.2078]
[1725464451591,1.5554,2431.9,2431.5,7.3206]
[1725464451802,0.41122,2431.7,2431.5,3.2078]
[1725464451993,0.41123,2431.6,2431.5,3.2078]
[1725464452695,0.4112,2431.8,2431.5,7.73183]
[1725464452897,0.41123,2431.6,2431.5,3.2078]
[1725464453402,0.41122,2431.7,2431.5,7.73184]
[1725464453600,0.41122,2431.7,2431.5,3.61904]
[1725464453805,1.4308,2432.1,2431.6,4.1128]
[1725464453806,2.45868,2432.1,2431.6,4.1128]
[1725464454105,0.41121,2431.7,2431.6,1.5046]
[1725464454604,0.41121,2431.7,2431.6,5.6174]
[1725464454896,1.4393,2431.6,2431.5,3.2078]
[1725464455296,1.4393,2431.6,2431.5,7.3206]
[1725464455991,3.48658,2432.1,2431.2,3.2078]
[1725464456196,0.41128,2431.3,2431.2,3.2078]
[1725464456401,0.41127,2431.4,2431.2,3.61908]
[1725464456596,0.41128,2431.3,2431.2,3.2078]
[1725464456798,1.43948,2431.3,2431.2,3.2078]
[1725464457703,0.41128,2431.3,2431.2,3.2078]
[1725464458902,0.41125,2431.5,2431.2,13.3206]
[1725464459193,1.02795,2431.9,2431.3,4.1128]
[1725464459395,1.02795,2431.9,2431.7,3.2078]
[1725464459601,0.41119,2431.8,2431.7,3.2078]
[1725464459806,10.0278,2432.3,2431.7,3.2078]
[1725464460100,7.8478,2432.3,2431.9,0.41117]
[1725464460307,0.41111,2432.4,2432.0,3.2078]
[1725464460500,0.00617703,2432.5,2432.4,0.41109]
[1725464460897,0.00617703,2432.5,2432.4,11.97809]
[1725464461207,0.00617703,2432.5,2432.4,5.567]
[1725464461398,0.41724703,2432.5,2432.4,4.1112]
[1725464462004,0.41109,2432.4,2432.3,3.2078]
[1725464462609,1.43889,2432.3,2432.2,0.00617703]
[1725464463598,6.57787,2432.3,2432.2,0.00617703]
[1725464463795,1.43889,2432.3,2432.2,0.00617703]
[1725464464300,0.41111,2432.3,2432.2,0.00617703]
[1725464464499,1.8503,2432.4,2432.2,0.00617703]
[1725464464699,0.41111,2432.3,2432.2,0.00617703]
[1725464465401,1.43889,2432.3,2432.2,0.00617703]
[1725464466801,0.41111,2432.3,2432.2,0.00617703]
[1725464468116,1.85031,2432.4,2432.2,0.00617703]
[1725464468298,0.41111,2432.3,2432.2,0.00617703]
[1725464468702,0.41111,2432.3,2432.2,4.11737703]
[1725464469904,1.43889,2432.3,2432.2,0.00617703]
[1725464470907,0.41111,2432.3,2432.2,4.11737703]
[1725464471104,1.43889,2432.3,2432.2,0.00617703]
[1725464471305,0.41111,2432.3,2432.2,0.00617703]
[1725464472509,0.4111,2432.4,2432.2,0.00617703]
[1725464472710,0.4111,2432.4,2432.3,3.2078]
[1725464472907,1.43884,2432.4,2432.3,3.2078]
[1725464473105,0.4111,2432.4,2432.3,3.2078]
[1725464473604,1.43884,2432.4,2432.3,3.2078]
[1725464475009,3.49445,2432.3,2432.2,7.03e-06]
[1725464475204,9.04965,2432.3,2432.2,7.03e-06]
[1725464475405,15.04965,2432.3,2432.2,7.03e-06]
[1725464475810,17.10521,2432.3,2432.2,7.03e-06]
[1725464476308,15.04965,2432.3,2432.2,7.03e-06]
[1725464477110,17.10521,2432.3,2432.2,7.03e-06]
[1725464478412,1.43942,2431.4,2431.3,0.207]
[1725464478614,1.43953,2431.2,2431.1,4.6186]
[1725464478813,0.41129,2431.2,2431.1,4.6186]
[1725464479019,0.41129,2431.2,2431.1,9.14351]
[1725464479411,0.41129,2431.2,2431.1,8.7322]
[1725464480014,0.41129,2431.2,2431.1,4.6186]
[1725464480314,0.41129,2431.2,2431.1,8.7322]
[1725464481513,1.0281,2431.6,2431.3,0.41126]
[1725464481713,0.41126,2431.5,2431.4,0.41125]
[1725464481909,0.41126,2431.5,2431.4,3.61905]
[1725464482120,0.41126,2431.5,2431.4,7.73185]
[1725464482615,0.41122,2431.7,2431.6,0.41122]
[1725464483406,0.4112,2431.8,2431.7,0.4112]
[1725464483615,0.41119,2431.9,2431.8,0.41118]
[1725464484120,0.41119,2431.9,2431.8,4.112]
[1725464484322,0.41119,2431.8,2431.7,3.2078]
[1725464484714,0.41119,2431.8,2431.7,7.3198]
[1725464484913,0.41119,2431.8,2431.7,7.73101]
[1725464485123,0.41119,2431.8,2431.7,7.3198]
[1725464485811,2.46717,2431.8,2431.7,3.2078]
[1725464490121,0.41117,2432.0,2431.9,0.41117]
[1725464490321,0.00617703,2432.5,2431.8,1.4442]
[1725464490322,0.41115,2432.1,2431.8,1.4442]
[1725464490622,0.41115,2432.1,2432.0,3.61896]
[1725464490821,0.00617703,2432.5,2432.4,0.41109]
[1725464491010,0.00617703,2432.5,2432.4,3.2078]
[1725464491011,0.41725703,2432.5,2432.4,3.2078]
[1725464492018,0.00617703,2432.5,2432.4,13.73009]
[1725464492215,4.20626233,2433.5,2432.5,1.02769]
[1725464492417,2.5424,2433.5,2432.9,0.41099]
[1725464492618,0.41093,2433.4,2433.0,0.41098]
[1725464492827,1.92601,2433.5,2433.1,3.2078]
[1725464493221,1.52127703,2433.5,2433.1,3.2078]
[1725464493420,1.52127703,2433.5,2433.2,0.41095]
[1725464493723,1.52127703,2433.5,2433.1,3.2078]
[1725464494227,1.93218703,2433.5,2433.1,3.61877]
[1725464494429,0.41093,2433.4,2433.1,3.2078]
[1725464495818,0.41096,2433.2,2433.1,3.2078]
[1725464496221,0.41096,2433.2,2433.1,7.3174]
[1725464496923,1.52127703,2433.5,2433.1,7.3174]
[1725464497223,1.52127703,2433.5,2432.9,1.4812]
[1725464497224,0.00617703,2433.5,2433.4,3.2078]
[1725464497426,0.00617703,2433.5,2433.4,3.61872]
[1725464498021,0.00617703,2433.5,2433.4,3.2078]
[1725464498218,0.00617703,2433.5,2433.1,3.2078]
[1725464498423,0.41095,2433.3,2433.1,3.2078]
[1725464498731,0.41096,2433.2,2433.1,3.2078]
[1725464499429,1.43836,2433.2,2433.1,3.2078]
[1725464499617,0.41096,2433.2,2433.1,3.2078]
[1725464500534,2.52405,2433.4,2432.6,4.6166]
[1725464500829,0.411,2433.0,2432.7,0.41103]
[1725464501028,0.41101,2432.9,2432.6,5.02765]
[1725464501322,1.4759,2433.1,2432.8,0.41102]
[1725464501323,0.411,2433.0,2432.8,0.41102]
[1725464501526,1.4759,2433.1,2432.7,0.41103]
[1725464501719,1.4759,2433.1,2432.6,4.6166]
[1725464501920,0.41104,2432.8,2432.6,4.6166]
[1725464502131,0.41104,2432.8,2432.6,5.02764]
[1725464502322,0.41104,2432.7,2432.6,8.727]
[1725464502520,2.50337,2433.1,2432.2,0.25473238]
[1725464502521,0.41111,2432.3,2432.2,0.00617703]
[1725464505531,6.57787,2432.3,2432.2,0.00617703]
[1725464505729,1.02799,2431.8,2431.3,0.207]
[1725464506033,0.41128,2431.3,2431.2,3.2078]
[1725464506236,0.41127,2431.4,2431.2,3.2078]
[1725464506624,1.02803,2431.7,2431.2,3.2078]
[1725464506625,0.41128,2431.3,2431.2,3.2078]
[1725464506831,0.41128,2431.3,2431.2,7.3206]
[1725464507433,0.00616434,2431.5,2431.2,7.3206]
[1725464507635,0.41128,2431.3,2431.2,3.2078]
[1725464508037,0.41128,2431.3,2431.2,7.3206]
[1725464509027,0.41128,2431.3,2431.2,3.2078]
[1725464509227,1.43948,2431.3,2431.2,3.2078]
[1725464510039,0.41128,2431.3,2431.2,3.2078]
[1725464510540,0.41128,2431.3,2431.2,3.61909]
[1725464510833,0.00616434,2431.5,2431.3,0.41126]
[1725464511034,0.41128,2431.3,2431.2,3.61908]
[1725464511236,0.41128,2431.3,2431.2,3.2078]
[1725464511436,1.43948,2431.3,2431.2,3.2078]
[1725464511939,0.41128,2431.3,2431.2,3.2078]
[1725464512736,0.41128,2431.3,2431.2,3.2078]
[1725464513331,0.41128,2431.3,2431.2,3.61909]
[1725464513635,0.21539328,2431.5,2431.2,7.3206]
[1725464513636,0.41127,2431.4,2431.2,7.3206]
[1725464513936,0.00616434,2431.5,2431.2,3.2078]
[1725464514137,0.00616434,2431.5,2431.4,0.41126]
[1725464514439,0.00616434,2431.5,2431.4,4.52406]
[1725464514632,0.00616434,2431.5,2431.4,10.52406]
[1725464514828,0.00616434,2431.5,2431.4,4.52406]
[1725464515841,0.00616434,2431.5,2431.4,10.52406]
[1725464516039,2.48452,2432.5,2431.4,11.14096]
[1725464516240,0.41113,2432.2,2432.0,3.61895]
[1725464516938,2.48452,2432.5,2432.0,3.2078]
[1725464516939,1.4568,2432.5,2432.0,3.2078]
[1725464517144,1.4568,2432.5,2432.3,3.2078]
[1725464517145,0.4111,2432.4,2432.3,3.2078]
[1725464517943,0.00616434,2432.5,2432.3,7.7301]
[1725464518137,0.00616434,2432.5,2432.3,3.6189]
[1725464518438,0.00616434,2432.5,2432.3,3.2078]
[1725464518932,0.00616434,2432.5,2432.4,0.41109]
[1725464519138,0.00616434,2432.5,2432.3,3.6189]
[1725464519448,0.00616434,2432.5,2432.4,0.41109]
[1725464520142,1.74592341,2437.9,2432.3,3.2078]
[1725464520143,4.23512,2433.4,2432.3,3.2078]
[1725464520336,0.41102,2432.8,2432.7,3.2078]
[1725464520736,0.41107,2432.5,2432.3,3.2078]
[1725464520937,0.41109,2432.4,2432.3,3.2078]
[1725464521144,0.00616434,2432.6,2432.3,3.2078]
[1725464521442,0.41109,2432.4,2432.3,3.2078]
[1725464522035,4.52229,2432.4,2432.3,3.2078]
[1725464524239,5.55003,2432.4,2432.3,3.2078]
[1725464524442,5.55003,2432.4,2432.1,0.00616434]
[1725464524443,0.41112,2432.2,2432.1,0.00616434]
[1725464524945,4.52232,2432.2,2432.1,0.00616434]
[1725464525739,5.55014,2432.2,2432.1,0.00616434]
[1725464525939,7.02134,2432.2,2432.1,0.00616434]
[1725464526339,5.99352,2432.2,2432.1,0.00616434]
[1725464526743,1.88232,2432.2,2432.1,0.00616434]
[1725464527350,1.88232,2432.2,2431.7,3.2078]
[1725464527351,0.41119,2431.8,2431.7,3.2078]
[1725464528251,5.55118,2431.8,2431.7,3.2078]
[1725464528447,6.57917,2431.8,2431.7,3.2078]
[1725464528744,12.57917,2431.8,2431.7,3.18310457]
[1725464528952,1.4393,2431.6,2431.5,0.00616434]
[1725464529341,5.5521,2431.6,2431.5,0.00616434]
[1725464529745,6.58017,2431.6,2431.5,0.00616434]
[1725464529944,12.58017,2431.6,2431.5,0.00616434]
[1725464530149,1.02819,2431.4,2430.9,3.2078]
[1725464530346,0.41135,2430.9,2430.6,3.61918]
[1725464530544,0.41135,2430.9,2430.7,0.41138]
[1725464530845,0.41133,2431.0,2430.7,0.41137]
[1725464531239,0.41134,2431.0,2430.7,0.41137]
[1725464531647,0.00616434,2431.1,2430.7,0.41137]
[1725464532047,0.41135,2430.9,2430.7,0.41137]
[1725464532348,0.00616434,2431.1,2430.6,3.21396434]
[1725464532349,0.41138,2430.7,2430.6,3.21396434]
[1725464532550,0.41138,2430.7,2430.6,0.00616434]
[1725464533051,1.43983,2430.7,2430.6,0.00616434]
[1725464533239,4.52578,2430.7,2430.6,0.00616434]
[1725464533444,1.83928,2430.7,2430.6,0.00616434]
[1725464534541,0.41138,2430.7,2430.6,0.00616434]
[1725464535454,4.01666,2431.0,2430.7,0.41137]
[1725464535455,0.41135,2430.9,2430.7,0.41137]
[1725464536348,0.41135,2430.9,2430.7,1.5476]
[1725464536548,0.00616434,2431.1,2430.7,1.5476]
[1725464536845,0.41748434,2431.1,2431.0,0.41133]
[1725464537044,0.41748434,2431.1,2430.9,3.61914]
[1725464537354,0.41747434,2431.1,2431.0,0.41133]
[1725464537549,0.00616434,2431.1,2431.0,0.41133]
[1725464537956,0.00616434,2431.1,2430.9,3.2078]
[1725464537957,0.41133,2431.0,2430.9,3.2078]
[1725464538142,0.41133,2431.0,2430.9,3.61914]
[1725464538349,0.41133,2431.0,2430.9,3.2078]
[1725464538952,0.00616434,2431.1,2431.0,0.41133]
[1725464539149,0.00616434,2431.1,2430.9,3.61914]
[1725464539351,0.41133,2431.0,2430.9,3.61914]
[1725464541063,0.41136,2430.8,2430.7,1.5476]
[1725464541654,2.48817434,2431.1,2430.6,3.21396434]
[1725464541655,1.43983,2430.7,2430.6,3.21396434]
[1725464542652,2.46828,2430.7,2430.6,3.21396434]
[1725464543547,1.43983,2430.7,2430.6,3.21396434]
[1725464543753,6.58268,2430.7,2430.6,0.00616434]
[1725464544261,12.58268,2430.7,2430.6,4.34e-06]
[1725464546058,1.5045,2430.9,2430.6,0.41139434]
[1725464546059,0.41135,2430.9,2430.6,0.41139434]
[1725464546263,0.41138,2430.7,2430.6,4.34e-06]
[1725464547463,1.43983,2430.7,2430.6,4.34e-06]
[1725464547759,5.55423,2430.7,2430.6,4.34e-06]
[1725464547959,11.55423,2430.7,2430.6,4.34e-06]
[1725464548561,13.06393,2430.7,2430.6,4.34e-06]
[1725464551365,11.55423,2430.7,2430.6,4.34e-06]
[1725464551766,4.52578,2430.7,2430.6,4.34e-06]
[1725464552064,0.41138,2430.7,2430.6,4.34e-06]
[1725464552271,0.41137,2430.8,2430.6,4.34e-06]
[1725464552763,0.41138,2430.7,2430.6,4.34e-06]
[1725464552972,0.41137,2430.8,2430.6,4.34e-06]
[1725464553469,0.41138,2430.7,2430.6,4.34e-06]
[1725464554563,1.03447434,2431.1,2430.6,4.11440434]
[1725464554759,0.41138,2430.7,2430.6,3.20780434]
[1725464554961,0.41138,2430.7,2430.6,4.69320434]
[1725464555167,0.41138,2430.7,2430.6,8.80760434]
[1725464555357,1.02833,2431.0,2430.6,8.80760434]
[1725464555558,0.41138,2430.7,2430.6,4.69320434]
[1725464555767,0.41137,2430.8,2430.6,4.69320434]
[1725464556274,0.41137,2430.8,2430.6,5.10459434]
[1725464556464,0.41138,2430.7,2430.6,4.69320434]
[1725464556868,0.41137,2430.8,2430.6,9.21900434]
[1725464557171,0.41138,2430.7,2430.6,5.10460434]
[1725464557371,0.41137,2430.8,2430.6,5.10460434]
[1725464557573,1.02833,2431.0,2430.6,5.10460434]
[1725464557774,0.41137,2430.8,2430.6,5.10460434]
[1725464558165,0.41138,2430.7,2430.6,4.69320434]
[1725464559664,0.41138,2430.7,2430.6,5.10460434]
[1725464560065,0.41137,2430.8,2430.7,0.41138]
[1725464560272,0.00616434,2431.1,2430.6,4.69320434]
[1725464560464,0.00616434,2431.1,2431.0,4.64746]
[1725464560661,0.41125,2431.5,2431.3,0.41126]
[1725464560868,5.6607,2431.7,2431.3,3.2078]
[1725464561067,1.5437,2431.7,2431.3,3.2078]
[1725464561272,0.41126,2431.4,2431.3,3.2078]
[1725464563772,0.41129,2431.2,2430.9,3.2078]
[1725464564072,1.03425434,2431.6,2431.0,0.41132]
[1725464564073,0.00616434,2431.6,2431.0,0.41132]
[1725464564275,0.41125,2431.5,2430.9,3.2078]
[1725464564483,0.41127,2431.4,2431.1,0.4113]
[1725464564777,0.00616434,2431.6,2430.9,3.2078]
[1725464564970,0.4113,2431.2,2430.9,3.61913]
[1725464565972,0.41133,2431.0,2430.9,3.2078]
[1725464566175,0.41132,2431.1,2430.9,3.2078]
[1725464566483,0.41133,2431.0,2430.9,3.2078]
[1725464566771,0.41132,2431.1,2430.9,3.61914]
[1725464567573,0.20620083,2431.5,2431.0,0.41132]
[1725464567574,0.4113,2431.2,2431.0,0.41132]
[1725464568173,0.41131,2431.1,2430.9,3.61914]
[1725464568374,0.41131,2431.1,2430.9,3.2078]
[1725464568680,0.41131,2431.1,2430.9,7.73273]
[1725464569177,0.41133,2431.0,2430.9,3.2078]
[1725464569473,1.43966,2431.0,2430.9,3.2078]
[1725464570465,0.41133,2431.0,2430.9,3.2078]
[1725464570673,2.13616434,2431.6,2430.9,3.2078]
[1725464570674,0.00616434,2431.6,2430.9,15.4514]
[1725464570877,0.00616434,2431.6,2431.2,3.2078]
[1725464571079,0.00616434,2431.6,2431.5,3.61904]
[1725464571577,0.00616434,2431.6,2431.5,13.73184]
[1725464571775,0.00616434,2431.6,2431.5,16.88996]
[1725464571971,5.66288,2432.3,2431.8,0.41118]
[1725464571972,0.41117,2432.0,2431.8,0.41118]
[1725464572175,0.41117,2432.0,2431.8,3.61898]
[1725464572669,1.02783,2432.2,2431.8,3.61898]
[1725464572878,0.41118,2431.9,2431.8,3.2078]
[1725464574187,1.43913,2431.9,2431.8,3.2078]
[1725464578573,2.46708,2431.9,2431.8,3.2078]
[1725464579390,0.41124,2431.5,2431.4,1.5393]
[1725464579674,1.43936,2431.5,2431.4,1.5393]
[1725464580179,2.50225,2431.7,2431.2,3.2078]
[1725464580377,0.41128,2431.3,2431.2,4.7142]
[1725464580680,0.41126,2431.4,2431.2,4.7142]
[1725464580881,1.02812,2431.5,2431.2,5.12549]
[1725464581076,0.41127,2431.4,2431.2,5.12549]
[1725464581382,0.41128,2431.3,2431.2,5.12549]
[1725464581978,0.41128,2431.3,2431.2,4.7142]
[1725464582384,1.43948,2431.3,2431.2,4.7142]
[1725464582681,1.43971,2430.9,2430.8,3.2078]
[1725464582995,0.41138,2430.7,2430.6,4.34e-06]
[1725464583179,0.41138,2430.7,2430.6,4.11440434]
[1725464583380,0.41138,2430.7,2430.6,4.34e-06]
[1725464585477,0.41138,2430.7,2430.6,0.41140434]
[1725464585682,0.00616434,2430.9,2430.6,4.34e-06]
[1725464585886,0.00616434,2430.9,2430.8,3.61916]
[1725464586285,0.00616434,2430.9,2430.8,7.73276]
[1725464587883,0.00616434,2430.9,2430.8,8.76117]
[1725464588277,0.41125,2431.5,2431.3,0.41127]
[1725464588478,0.41127,2431.4,2431.2,0.41128]
[1725464588682,1.02807,2431.6,2431.1,3.2078]
[1725464588887,1.43953,2431.2,2431.1,3.2078]
[1725464589092,0.41129,2431.2,2431.1,3.2078]
[1725464591788,0.00616434,2431.4,2431.3,0.41128]
[1725464592688,0.00616434,2431.4,2431.3,1.90298]
[1725464594593,0.00616434,2431.4,2431.1,3.2078]